[Event "GrandPrix_30.05"]
[Site "Chess.com"]
[Date "2020.05.30"]
[Round "1"]
[White "Micki-taryan"]
[Black "Winawer81"]
[Result "1-0"]
[WhiteElo "2530"]
[BlackElo "2144"]
[TimeControl "600+2"]
[EndTime "8:24:15 PDT"]
[Termination "Micki-taryan won by resignation"]

1. d4 {[%clk 0:10:00.9]} 1... Nf6 {[%clk 0:09:59.9]} 2. Nf3 {[%clk 0:10:00.7]}
2... e6 {[%clk 0:10:00]} 3. c4 {[%clk 0:10:00.5]} 3... b6 {[%clk 0:10:00.2]} 4.
Nc3 {[%clk 0:10:00.6]} 4... Bb7 {[%clk 0:09:59.9]} 5. Bg5 {[%clk 0:10:01.1]}
5... Be7 {[%clk 0:10:00.1]} 6. Qc2 {[%clk 0:09:59.7]} 6... h6 {[%clk 0:09:58.1]}
7. Bh4 {[%clk 0:09:41.7]} 7... c5 {[%clk 0:09:56.9]} 8. dxc5 {[%clk 0:09:40.4]}
8... bxc5 {[%clk 0:09:51.8]} 9. Rd1 {[%clk 0:09:40.9]} 9... d6 {[%clk
0:09:33.4]} 10. e3 {[%clk 0:09:12.1]} 10... Nc6 {[%clk 0:08:56.7]} 11. Be2
{[%clk 0:09:06.3]} 11... a6 {[%clk 0:08:39.6]} 12. O-O {[%clk 0:09:05.9]} 12...
Qc7 {[%clk 0:08:38.7]} 13. Rd2 {[%clk 0:09:03.4]} 13... O-O {[%clk 0:08:35.6]}
14. Rfd1 {[%clk 0:09:03.9]} 14... Rfd8 {[%clk 0:08:32.5]} 15. h3 {[%clk
0:08:44.3]} 15... Rab8 {[%clk 0:07:42.9]} 16. Bg3 {[%clk 0:08:16.3]} 16... Ne8
{[%clk 0:06:58.8]} 17. a3 {[%clk 0:07:59.2]} 17... Ba8 {[%clk 0:06:48.2]} 18.
Ne4 {[%clk 0:07:58.9]} 18... Na5 {[%clk 0:06:37.8]} 19. Rb1 {[%clk 0:07:10.2]}
19... Nb3 {[%clk 0:06:21.2]} 20. Rdd1 {[%clk 0:07:10.7]} 20... Rb6 {[%clk
0:05:49.1]} 21. Ned2 {[%clk 0:06:44.9]} 21... Rdb8 {[%clk 0:05:36]} 22. Nxb3
{[%clk 0:06:23]} 22... Rxb3 {[%clk 0:05:35.6]} 23. Nd2 {[%clk 0:06:24.9]} 23...
R3b6 {[%clk 0:05:22.7]} 24. b3 {[%clk 0:06:21.1]} 24... Bc6 {[%clk 0:05:17]} 25.
Bf3 {[%clk 0:06:21.8]} 25... Qb7 {[%clk 0:05:08.4]} 26. Bxc6 {[%clk 0:06:19.5]}
26... Qxc6 {[%clk 0:05:08.6]} 27. e4 {[%clk 0:06:05.8]} 27... e5 {[%clk
0:04:26.5]} 28. Nf1 {[%clk 0:05:37.6]} 28... Qb7 {[%clk 0:04:24.7]} 29. Ne3
{[%clk 0:03:45.6]} 29... Rxb3 {[%clk 0:03:53]} 30. Ra1 {[%clk 0:03:05.3]} 30...
Bg5 {[%clk 0:03:00.7]} 31. Nf5 {[%clk 0:02:52.4]} 31... Be7 {[%clk 0:02:29.3]}
32. f4 {[%clk 0:02:13.5]} 32... g6 {[%clk 0:01:56]} 33. Nxe7+ {[%clk 0:02:04.9]}
33... Qxe7 {[%clk 0:01:55.8]} 34. Kh2 {[%clk 0:02:06.3]} 34... Rb2 {[%clk
0:01:35.2]} 35. Qc1 {[%clk 0:02:05.7]} 35... R8b3 {[%clk 0:01:18]} 36. Rd2
{[%clk 0:01:43.2]} 36... Rxd2 {[%clk 0:01:13.9]} 37. Qxd2 {[%clk 0:01:45.1]}
37... exf4 {[%clk 0:01:12.2]} 38. Bxf4 {[%clk 0:01:44.4]} 38... g5 {[%clk
0:00:59.5]} 39. Qd1 {[%clk 0:01:32.9]} 39... Rb2 {[%clk 0:00:54.8]} 40. Bg3
{[%clk 0:01:24.8]} 40... Qxe4 {[%clk 0:00:53.5]} 41. Qf1 {[%clk 0:01:26.4]}
41... Re2 {[%clk 0:00:44.2]} 42. Rd1 {[%clk 0:01:22.3]} 42... h5 {[%clk
0:00:37.8]} 43. Kh1 {[%clk 0:01:08.9]} 43... h4 {[%clk 0:00:23.4]} 44. Re1
{[%clk 0:00:36.4]} 44... Rxe1 {[%clk 0:00:19.7]} 45. Bxe1 {[%clk 0:00:38.3]}
45... Ng7 {[%clk 0:00:14.4]} 46. Bc3 {[%clk 0:00:26.7]} 46... Nf5 {[%clk
0:00:14.7]} 47. Kh2 {[%clk 0:00:27.3]} 47... Qf4+ {[%clk 0:00:11.9]} 48. Qxf4
{[%clk 0:00:27.6]} 48... gxf4 {[%clk 0:00:12.3]} 49. Bd2 {[%clk 0:00:29.5]}
49... Ne3 {[%clk 0:00:13.1]} 50. Kg1 {[%clk 0:00:30.7]} 50... Nxc4 {[%clk
0:00:12.9]} 51. Bxf4 {[%clk 0:00:32.6]} 51... Nxa3 {[%clk 0:00:13.7]} 52. Bxd6
{[%clk 0:00:33.7]} 52... Nb5 {[%clk 0:00:13]} 53. Bxc5 {[%clk 0:00:35.2]} 53...
Kh7 {[%clk 0:00:14]} 54. Kf2 {[%clk 0:00:36.2]} 54... Kg6 {[%clk 0:00:14.6]} 55.
Kf3 {[%clk 0:00:36.5]} 55... Nc3 {[%clk 0:00:14.3]} 56. Bf2 {[%clk 0:00:36.2]}
56... Kh5 {[%clk 0:00:14.6]} 57. Kf4 {[%clk 0:00:36.8]} 57... a5 {[%clk
0:00:12.1]} 58. Be1 {[%clk 0:00:38.1]} 58... Nd5+ {[%clk 0:00:12.5]} 59. Ke5
{[%clk 0:00:39.6]} 59... Ne3 {[%clk 0:00:13.2]} 60. Bxa5 {[%clk 0:00:41]} 60...
Nxg2 {[%clk 0:00:13.7]} 61. Ke4 {[%clk 0:00:41.5]} 61... Ne1 {[%clk 0:00:13]}
62. Bxe1 {[%clk 0:00:42]} 62... Kg5 {[%clk 0:00:13.3]} 63. Bd2+ {[%clk
0:00:42.9]} 63... Kh5 {[%clk 0:00:13.8]} 64. Kf4 {[%clk 0:00:42.2]} 64... f5
{[%clk 0:00:12.7]} 65. Be1 {[%clk 0:00:42.4]} 65... Kg6 {[%clk 0:00:12.3]} 66.
Bxh4 {[%clk 0:00:43.6]} 1-0

[Event "GrandPrix_30.05"]
[Site "Chess.com"]
[Date "2020.05.30"]
[Round "1"]
[White "Bacyanide"]
[Black "LuckyLuka04"]
[Result "1/2-1/2"]
[WhiteElo "2447"]
[BlackElo "2148"]
[TimeControl "600+2"]
[EndTime "8:24:19 PDT"]
[Termination "Game drawn by agreement"]

1. d4 {[%clk 0:10:00.8]} 1... Nf6 {[%clk 0:10:00.1]} 2. Nf3 {[%clk 0:10:01.5]}
2... e6 {[%clk 0:10:00.4]} 3. Bf4 {[%clk 0:10:01.6]} 3... d5 {[%clk 0:10:01.1]}
4. Nbd2 {[%clk 0:10:02.5]} 4... Bd6 {[%clk 0:10:02.4]} 5. Bg5 {[%clk 0:10:03.4]}
5... c5 {[%clk 0:10:01.5]} 6. e3 {[%clk 0:10:03.5]} 6... O-O {[%clk 0:09:53.8]}
7. c3 {[%clk 0:10:03.6]} 7... b6 {[%clk 0:09:53.9]} 8. Bd3 {[%clk 0:10:00.1]}
8... Bb7 {[%clk 0:09:52]} 9. Ne5 {[%clk 0:10:00.9]} 9... Be7 {[%clk 0:09:38.7]}
10. f4 {[%clk 0:09:24.6]} 10... Ne4 {[%clk 0:09:31.3]} 11. Bxe7 {[%clk
0:08:28.7]} 11... Qxe7 {[%clk 0:09:33.2]} 12. Qf3 {[%clk 0:08:02.1]} 12... f6
{[%clk 0:08:42.5]} 13. Ng4 {[%clk 0:07:42.7]} 13... Nd7 {[%clk 0:07:49.8]} 14.
Qh3 {[%clk 0:05:08.7]} 14... f5 {[%clk 0:06:40]} 15. Ne5 {[%clk 0:05:07.9]}
15... cxd4 {[%clk 0:05:35.4]} 16. exd4 {[%clk 0:04:54]} 16... Nxe5 {[%clk
0:05:34.4]} 17. fxe5 {[%clk 0:04:41.7]} 17... Qg5 {[%clk 0:04:57.2]} 18. Rd1
{[%clk 0:03:32.3]} 18... Kh8 {[%clk 0:04:23.1]} 19. Nb3 {[%clk 0:01:44.6]} 19...
Bc6 {[%clk 0:02:31.5]} 20. O-O {[%clk 0:01:41.6]} 20... Ba4 {[%clk 0:02:22.7]}
21. Rfe1 {[%clk 0:01:16.7]} 21... Be8 {[%clk 0:01:58.1]} 22. Be2 {[%clk
0:00:49.9]} 22... a5 {[%clk 0:01:43.9]} 23. Nc1 {[%clk 0:00:36.6]} 23... Bg6
{[%clk 0:01:15.5]} 24. Nd3 {[%clk 0:00:29.2]} 24... Be8 {[%clk 0:00:54.4]} 25.
Rf1 {[%clk 0:00:22.9]} 25... Bb5 {[%clk 0:00:50.3]} 26. Nf4 {[%clk 0:00:23.2]}
26... Bxe2 {[%clk 0:00:50.6]} 27. Nxe2 {[%clk 0:00:25.1]} 27... Kg8 {[%clk
0:00:38.1]} 28. Nf4 {[%clk 0:00:25]} 28... Qe7 {[%clk 0:00:39.5]} 29. Ne2 {[%clk
0:00:21.1]} 29... a4 {[%clk 0:00:39.9]} 30. a3 {[%clk 0:00:21.9]} 30... g5
{[%clk 0:00:37.2]} 31. Ng3 {[%clk 0:00:21.5]} 31... f4 {[%clk 0:00:11.7]} 32.
Nxe4 {[%clk 0:00:19.2]} 32... dxe4 {[%clk 0:00:13.6]} 33. Qg4 {[%clk 0:00:20.3]}
33... Kh8 {[%clk 0:00:13.5]} 34. h4 {[%clk 0:00:21.3]} 34... gxh4 {[%clk
0:00:10.1]} 35. Rxf4 {[%clk 0:00:21.1]} 35... e3 {[%clk 0:00:11.4]} 36. Re1
{[%clk 0:00:20.8]} 36... Rxf4 {[%clk 0:00:12.3]} 37. Qxf4 {[%clk 0:00:22]} 37...
h3 {[%clk 0:00:13.1]} 38. gxh3 {[%clk 0:00:20.3]} 38... Rg8+ {[%clk 0:00:14.3]}
39. Kh2 {[%clk 0:00:20.9]} 39... Rf8 {[%clk 0:00:15.3]} 40. Qg3 {[%clk
0:00:20.9]} 40... Qf7 {[%clk 0:00:16]} 41. Rxe3 {[%clk 0:00:20.6]} 41... Qf1
{[%clk 0:00:17.1]} 42. Qg1 {[%clk 0:00:17.1]} 42... Rf2+ {[%clk 0:00:12.1]} 43.
Kh1 {[%clk 0:00:18.4]} 43... Qxg1+ {[%clk 0:00:13]} 44. Kxg1 {[%clk 0:00:19.6]}
44... Rxb2 {[%clk 0:00:14.8]} 45. Rf3 {[%clk 0:00:20.2]} 45... Rb3 {[%clk
0:00:16.2]} 46. Rf6 {[%clk 0:00:21.3]} 46... Rxa3 {[%clk 0:00:17]} 47. Rxe6
{[%clk 0:00:22.5]} 47... Rxc3 {[%clk 0:00:18.2]} 48. Rxb6 {[%clk 0:00:23.5]}
48... Rxh3 {[%clk 0:00:18.8]} 49. e6 {[%clk 0:00:23.4]} 49... Kg7 {[%clk
0:00:19.7]} 50. d5 {[%clk 0:00:23.2]} 50... Kf6 {[%clk 0:00:19.8]} 51. Rb7
{[%clk 0:00:23.1]} 51... Re3 {[%clk 0:00:19.9]} 52. Rf7+ {[%clk 0:00:22.8]}
52... Ke5 {[%clk 0:00:20.4]} 53. Rd7 {[%clk 0:00:21.9]} 53... Kf6 {[%clk
0:00:20.8]} 54. Rf7+ {[%clk 0:00:20.4]} 54... Ke5 {[%clk 0:00:21.3]} 55. Rd7
{[%clk 0:00:21.3]} 55... Kf6 {[%clk 0:00:11.5]} 56. Kf2 {[%clk 0:00:22.1]} 56...
Re5 {[%clk 0:00:09.4]} 57. Rf7+ {[%clk 0:00:18.6]} 57... Kg6 {[%clk 0:00:10.6]}
58. Ra7 {[%clk 0:00:15.3]} 58... Rxd5 {[%clk 0:00:11.1]} 59. Rxa4 {[%clk
0:00:15.6]} 59... Kf6 {[%clk 0:00:10.8]} 60. Ra7 {[%clk 0:00:15]} 60... Kxe6
{[%clk 0:00:10.6]} 61. Rxh7 {[%clk 0:00:15.6]} 61... Rf5+ {[%clk 0:00:12.2]} 62.
Kg3 {[%clk 0:00:16.4]} 1/2-1/2

[Event "GrandPrix_30.05"]
[Site "Chess.com"]
[Date "2020.05.30"]
[Round "1"]
[White "SavelievAlexei"]
[Black "VMikhalevski"]
[Result "0-1"]
[WhiteElo "2183"]
[BlackElo "2648"]
[TimeControl "600+2"]
[EndTime "8:24:21 PDT"]
[Termination "VMikhalevski won by resignation"]

1. e4 {[%clk 0:10:01.9]} 1... e5 {[%clk 0:09:59.2]} 2. Nf3 {[%clk 0:10:01.8]}
2... Nc6 {[%clk 0:10:00.6]} 3. Be2 {[%clk 0:09:56.3]} 3... Nf6 {[%clk
0:09:59.5]} 4. d3 {[%clk 0:09:57.4]} 4... g6 {[%clk 0:09:56.9]} 5. c3 {[%clk
0:09:53.7]} 5... Bg7 {[%clk 0:09:57.2]} 6. b4 {[%clk 0:09:55]} 6... a6 {[%clk
0:09:52.9]} 7. a4 {[%clk 0:09:55.7]} 7... d5 {[%clk 0:09:51.6]} 8. Nbd2 {[%clk
0:09:56.3]} 8... O-O {[%clk 0:09:45.7]} 9. O-O {[%clk 0:09:49.6]} 9... Re8
{[%clk 0:09:08.1]} 10. Re1 {[%clk 0:09:35.4]} 10... b6 {[%clk 0:08:55.7]} 11.
Bb2 {[%clk 0:09:29]} 11... Bb7 {[%clk 0:08:54.8]} 12. Bf1 {[%clk 0:09:29.1]}
12... Qd6 {[%clk 0:08:03.8]} 13. Qb3 {[%clk 0:09:10.8]} 13... Rad8 {[%clk
0:07:37.8]} 14. Rad1 {[%clk 0:09:10.4]} 14... Qd7 {[%clk 0:07:17.5]} 15. g3
{[%clk 0:08:51]} 15... h6 {[%clk 0:06:17]} 16. Bg2 {[%clk 0:08:48.1]} 16... Kh7
{[%clk 0:06:16.3]} 17. Ba3 {[%clk 0:07:59]} 17... Kg8 {[%clk 0:05:40.1]} 18. Bb2
{[%clk 0:07:38.5]} 18... Qc8 {[%clk 0:04:51.5]} 19. Nh4 {[%clk 0:06:13.5]} 19...
Ne7 {[%clk 0:03:42]} 20. exd5 {[%clk 0:05:56.6]} 20... Bxd5 {[%clk 0:03:19.2]}
21. Bxd5 {[%clk 0:05:56.5]} 21... Rxd5 {[%clk 0:02:39.7]} 22. c4 {[%clk
0:05:52.3]} 22... Rdd8 {[%clk 0:02:39.4]} 23. Bxe5 {[%clk 0:05:36.1]} 23... Nc6
{[%clk 0:02:36]} 24. Ba1 {[%clk 0:04:26.3]} 24... Rxe1+ {[%clk 0:01:51.4]} 25.
Rxe1 {[%clk 0:04:28.2]} 25... Qh3 {[%clk 0:01:51.4]} 26. Nhf3 {[%clk 0:04:15.1]}
26... a5 {[%clk 0:01:36.8]} 27. b5 {[%clk 0:04:06]} 27... Nb4 {[%clk 0:01:37.3]}
28. d4 {[%clk 0:04:06.6]} 28... Ng4 {[%clk 0:01:35.5]} 29. Nf1 {[%clk
0:03:18.1]} 29... Qh5 {[%clk 0:01:24.3]} 30. Re7 {[%clk 0:01:52.3]} 30... Qf5
{[%clk 0:01:14.8]} 31. h3 {[%clk 0:00:57.5]} 31... Nf6 {[%clk 0:01:12.1]} 32.
Kg2 {[%clk 0:00:57.7]} 32... Ne8 {[%clk 0:00:38.7]} 33. Re1 {[%clk 0:00:12.9]}
33... Qc2 {[%clk 0:00:35.8]} 34. Qe3 {[%clk 0:00:07.5]} 34... Qxc4 {[%clk
0:00:33.1]} 35. Rc1 {[%clk 0:00:04.8]} 35... Qa2 {[%clk 0:00:28.5]} 36. Ne5
{[%clk 0:00:05.7]} 36... Qe6 {[%clk 0:00:20.9]} 37. f4 {[%clk 0:00:05]} 37...
Nd5 {[%clk 0:00:20.7]} 38. Qf3 {[%clk 0:00:05.5]} 38... Nef6 {[%clk 0:00:15.7]}
39. Nc6 {[%clk 0:00:06.4]} 39... Re8 {[%clk 0:00:15.6]} 40. Ne5 {[%clk
0:00:06.6]} 40... Qf5 {[%clk 0:00:14.7]} 41. Nd2 {[%clk 0:00:07]} 41... h5
{[%clk 0:00:13.7]} 42. Rc6 {[%clk 0:00:07]} 42... h4 {[%clk 0:00:10.9]} 43. g4
{[%clk 0:00:07.9]} 43... Qxf4 {[%clk 0:00:10.9]} 44. Qxf4 {[%clk 0:00:08.8]}
44... Nxf4+ {[%clk 0:00:11.5]} 45. Kf3 {[%clk 0:00:10.1]} 45... Nxh3 {[%clk
0:00:11.9]} 46. Rxc7 {[%clk 0:00:11.3]} 46... Ng5+ {[%clk 0:00:12.6]} 47. Kg2
{[%clk 0:00:10.8]} 47... Nd5 {[%clk 0:00:12.8]} 48. Rd7 {[%clk 0:00:11.4]} 48...
Nf4+ {[%clk 0:00:12.1]} 49. Kf2 {[%clk 0:00:10.8]} 49... Rc8 {[%clk 0:00:11.2]}
50. Nc6 {[%clk 0:00:11.2]} 50... Re8 {[%clk 0:00:11.2]} 51. Ne5 {[%clk
0:00:11.3]} 51... h3 {[%clk 0:00:10.8]} 52. Kg3 {[%clk 0:00:10.9]} 52... Ne2+
{[%clk 0:00:11.6]} 53. Kh2 {[%clk 0:00:10.3]} 53... Nxd4 {[%clk 0:00:12.4]} 54.
Bxd4 {[%clk 0:00:08.9]} 54... Bxe5+ {[%clk 0:00:12.8]} 55. Bxe5 {[%clk
0:00:10.4]} 55... Rxe5 {[%clk 0:00:14.3]} 56. Nc4 {[%clk 0:00:10]} 56... Re2+
{[%clk 0:00:15.2]} 57. Kg3 {[%clk 0:00:11.5]} 57... Rg2+ {[%clk 0:00:15.9]} 58.
Kf4 {[%clk 0:00:11]} 58... Ne6+ {[%clk 0:00:16]} 59. Ke5 {[%clk 0:00:11.7]}
59... h2 {[%clk 0:00:16.7]} 60. Rd1 {[%clk 0:00:12.4]} 60... Rg1 {[%clk
0:00:16.2]} 0-1

[Event "GrandPrix_30.05"]
[Site "Chess.com"]
[Date "2020.05.30"]
[Round "1"]
[White "BogdanDeac"]
[Black "klimkoj"]
[Result "1-0"]
[WhiteElo "2481"]
[BlackElo "2119"]
[TimeControl "600+2"]
[EndTime "8:24:21 PDT"]
[Termination "BogdanDeac won by resignation"]

1. Nf3 {[%clk 0:09:59.7]} 1... Nf6 {[%clk 0:09:59.8]} 2. c4 {[%clk 0:10:00.2]}
2... g6 {[%clk 0:09:59.9]} 3. Nc3 {[%clk 0:10:00.7]} 3... Bg7 {[%clk 0:10:00.2]}
4. g3 {[%clk 0:10:01.2]} 4... O-O {[%clk 0:09:56]} 5. Bg2 {[%clk 0:10:02.1]}
5... d6 {[%clk 0:09:56.3]} 6. d4 {[%clk 0:10:02.5]} 6... Nc6 {[%clk 0:09:52.6]}
7. O-O {[%clk 0:10:02.7]} 7... a6 {[%clk 0:09:51.5]} 8. Re1 {[%clk 0:10:03]}
8... Rb8 {[%clk 0:09:47.9]} 9. Rb1 {[%clk 0:10:03.3]} 9... Bg4 {[%clk
0:09:43.6]} 10. h3 {[%clk 0:09:42.4]} 10... Bxf3 {[%clk 0:09:43.4]} 11. Bxf3
{[%clk 0:09:44.3]} 11... Nd7 {[%clk 0:09:43.8]} 12. e3 {[%clk 0:09:40.8]} 12...
e5 {[%clk 0:09:43.8]} 13. d5 {[%clk 0:09:41.1]} 13... Ne7 {[%clk 0:09:44.1]} 14.
e4 {[%clk 0:09:37.5]} 14... f5 {[%clk 0:09:43.3]} 15. h4 {[%clk 0:09:37.5]}
15... Nf6 {[%clk 0:09:39.5]} 16. h5 {[%clk 0:09:36.5]} 16... f4 {[%clk
0:09:23.4]} 17. Kg2 {[%clk 0:08:50.3]} 17... g5 {[%clk 0:09:10.9]} 18. g4 {[%clk
0:08:50.1]} 18... Qd7 {[%clk 0:09:04]} 19. Be2 {[%clk 0:08:46]} 19... c5 {[%clk
0:08:50.8]} 20. b4 {[%clk 0:08:40.8]} 20... b6 {[%clk 0:08:45.8]} 21. f3 {[%clk
0:08:36]} 21... Rfc8 {[%clk 0:08:42.1]} 22. Qa4 {[%clk 0:08:21.2]} 22... Qxa4
{[%clk 0:08:02.7]} 23. Nxa4 {[%clk 0:08:20.6]} 23... Nd7 {[%clk 0:08:01.8]} 24.
Bd2 {[%clk 0:08:13]} 24... Rb7 {[%clk 0:07:28]} 25. Rb2 {[%clk 0:06:57.4]} 25...
Rcb8 {[%clk 0:06:59.9]} 26. Reb1 {[%clk 0:06:57]} 26... Nc8 {[%clk 0:06:56.8]}
27. Be1 {[%clk 0:06:52.9]} 27... Bf6 {[%clk 0:06:39.4]} 28. Bf2 {[%clk
0:06:48.2]} 28... Be7 {[%clk 0:06:37.4]} 29. Nc3 {[%clk 0:06:48.1]} 29... Rc7
{[%clk 0:06:05.9]} 30. Bd1 {[%clk 0:05:56.7]} 30... cxb4 {[%clk 0:05:23.7]} 31.
Rxb4 {[%clk 0:05:56.2]} 31... Nc5 {[%clk 0:05:23.8]} 32. Bc2 {[%clk 0:05:12.3]}
32... Kf7 {[%clk 0:05:01.4]} 33. Kf1 {[%clk 0:04:28.6]} 33... Bd8 {[%clk
0:04:45.3]} 34. Ke2 {[%clk 0:03:37.5]} 34... h6 {[%clk 0:04:35.6]} 35. Na4
{[%clk 0:01:46]} 35... a5 {[%clk 0:03:13.3]} 36. Nxc5 {[%clk 0:01:32.3]} 36...
dxc5 {[%clk 0:02:50]} 37. Rb5 {[%clk 0:01:32.5]} 37... Ra8 {[%clk 0:01:26]} 38.
Rxb6 {[%clk 0:01:28.1]} 38... Nxb6 {[%clk 0:01:26.2]} 39. Rxb6 {[%clk 0:01:30]}
39... Raa7 {[%clk 0:01:01.4]} 40. Rxh6 {[%clk 0:00:49.8]} 40... Rab7 {[%clk
0:01:01.3]} 41. Kd3 {[%clk 0:00:16]} 41... Rb2 {[%clk 0:01:00]} 42. Rh8 {[%clk
0:00:12.7]} 42... Be7 {[%clk 0:00:59.7]} 43. a4 {[%clk 0:00:12]} 43... Rcb7
{[%clk 0:00:56.2]} 44. Be1 {[%clk 0:00:10.2]} 44... Ra2 {[%clk 0:00:56.3]} 45.
Bc3 {[%clk 0:00:10.4]} 45... Ra3 {[%clk 0:00:45]} 46. Rh7+ {[%clk 0:00:06.5]}
46... Kg8 {[%clk 0:00:41.4]} 47. Rh6 {[%clk 0:00:07.5]} 47... Bf8 {[%clk
0:00:33.9]} 48. Ra6 {[%clk 0:00:07.7]} 48... Ra2 {[%clk 0:00:25.3]} 49. Rxa5
{[%clk 0:00:07.9]} 49... Ra3 {[%clk 0:00:25.8]} 50. Rb5 {[%clk 0:00:07.3]} 50...
Ra7 {[%clk 0:00:24.9]} 51. Rb6 {[%clk 0:00:05.6]} 51... Bg7 {[%clk 0:00:21.8]}
52. Kd2 {[%clk 0:00:06.5]} 52... Kh7 {[%clk 0:00:20.8]} 53. Rb5 {[%clk
0:00:06.5]} 53... Ra2 {[%clk 0:00:21.5]} 54. Kc1 {[%clk 0:00:06.4]} 54... Bf8
{[%clk 0:00:19.7]} 55. Rb6 {[%clk 0:00:04.9]} 55... R7xa4 {[%clk 0:00:17.7]} 56.
Bxa4 {[%clk 0:00:05.3]} 56... Rxa4 {[%clk 0:00:19.4]} 57. Kc2 {[%clk 0:00:07.2]}
57... Rxc4 {[%clk 0:00:16.3]} 58. Kb3 {[%clk 0:00:08.1]} 1-0

[Event "GrandPrix_30.05"]
[Site "Chess.com"]
[Date "2020.05.30"]
[Round "1"]
[White "Meri-Arabidze"]
[Black "VolodymyrMolyboha"]
[Result "1-0"]
[WhiteElo "2061"]
[BlackElo "2225"]
[TimeControl "600+2"]
[EndTime "8:24:25 PDT"]
[Termination "Meri-Arabidze won by resignation"]

1. d4 {[%clk 0:10:01.8]} 1... g6 {[%clk 0:09:58.2]} 2. c4 {[%clk 0:10:02.2]}
2... Bg7 {[%clk 0:09:59]} 3. Nf3 {[%clk 0:10:02.9]} 3... d6 {[%clk 0:09:59.4]}
4. Nc3 {[%clk 0:10:02.3]} 4... Bg4 {[%clk 0:10:00]} 5. e3 {[%clk 0:10:00.7]}
5... Nc6 {[%clk 0:10:00.5]} 6. Be2 {[%clk 0:10:01.7]} 6... e5 {[%clk 0:10:01.5]}
7. d5 {[%clk 0:09:56.9]} 7... Nce7 {[%clk 0:10:02.4]} 8. h3 {[%clk 0:09:57]}
8... Bxf3 {[%clk 0:10:02.3]} 9. Bxf3 {[%clk 0:09:58.3]} 9... f5 {[%clk
0:10:03.5]} 10. e4 {[%clk 0:09:56.4]} 10... Nf6 {[%clk 0:10:03.8]} 11. exf5
{[%clk 0:09:31.2]} 11... Nxf5 {[%clk 0:10:03.5]} 12. O-O {[%clk 0:09:29.6]}
12... O-O {[%clk 0:10:03.6]} 13. g3 {[%clk 0:09:01.2]} 13... Bh6 {[%clk
0:09:53]} 14. Bxh6 {[%clk 0:08:47.4]} 14... Nxh6 {[%clk 0:09:53.5]} 15. c5
{[%clk 0:07:54.9]} 15... Nf5 {[%clk 0:09:51.3]} 16. cxd6 {[%clk 0:07:52.6]}
16... cxd6 {[%clk 0:09:51.9]} 17. Bg2 {[%clk 0:07:50.2]} 17... Rc8 {[%clk
0:09:47.4]} 18. Qb3 {[%clk 0:07:47.1]} 18... Qd7 {[%clk 0:09:37.9]} 19. Rac1
{[%clk 0:07:05.7]} 19... a6 {[%clk 0:09:30.6]} 20. Qb6 {[%clk 0:06:46.6]} 20...
Qc7 {[%clk 0:08:22.4]} 21. Qb4 {[%clk 0:05:58.3]} 21... Nd4 {[%clk 0:07:41.9]}
22. f4 {[%clk 0:05:39.2]} 22... a5 {[%clk 0:07:38.7]} 23. Qa4 {[%clk 0:04:42.2]}
23... Qc5 {[%clk 0:07:06.2]} 24. Kh2 {[%clk 0:04:22]} 24... Qb6 {[%clk
0:05:29.3]} 25. fxe5 {[%clk 0:04:13.8]} 25... dxe5 {[%clk 0:05:29.7]} 26. Qa3
{[%clk 0:04:11.6]} 26... Qd8 {[%clk 0:04:44.5]} 27. Na4 {[%clk 0:02:26.3]} 27...
b5 {[%clk 0:04:32.7]} 28. Nc5 {[%clk 0:02:26.3]} 28... Qd6 {[%clk 0:03:55.6]}
29. Nb7 {[%clk 0:02:00.8]} 29... Qxa3 {[%clk 0:03:48.2]} 30. bxa3 {[%clk
0:02:02.7]} 30... Rxc1 {[%clk 0:03:22.1]} 31. Rxc1 {[%clk 0:02:04.6]} 31... Rb8
{[%clk 0:03:22.6]} 32. Nxa5 {[%clk 0:02:02.6]} 32... Ra8 {[%clk 0:03:23.7]} 33.
Nc6 {[%clk 0:01:58.6]} 33... Rxa3 {[%clk 0:03:22.9]} 34. Nxe5 {[%clk 0:01:24.5]}
34... Rxa2 {[%clk 0:03:13.8]} 35. d6 {[%clk 0:01:25.8]} 35... Rd2 {[%clk
0:02:37.4]} 36. d7 {[%clk 0:01:14.8]} 36... Nxd7 {[%clk 0:01:59.2]} 37. Nxd7
{[%clk 0:01:14.6]} 37... b4 {[%clk 0:02:00.5]} 38. Nc5 {[%clk 0:01:06]} 38... b3
{[%clk 0:01:52.2]} 39. Rb1 {[%clk 0:01:05.2]} 39... b2 {[%clk 0:00:50.7]} 40.
Na4 {[%clk 0:01:05.9]} 40... h5 {[%clk 0:00:45.9]} 41. Nxb2 {[%clk 0:00:24.9]}
41... Nf5 {[%clk 0:00:40.7]} 42. Nc4 {[%clk 0:00:22.8]} 42... Rd3 {[%clk
0:00:41.6]} 43. Rb8+ {[%clk 0:00:23]} 43... Kg7 {[%clk 0:00:41.1]} 44. Rb7+
{[%clk 0:00:24.5]} 44... Kh6 {[%clk 0:00:38.2]} 45. Ne5 {[%clk 0:00:18.9]} 45...
Rxg3 {[%clk 0:00:27]} 46. Nf7+ {[%clk 0:00:19.9]} 46... Kg7 {[%clk 0:00:24.6]}
47. Nd6+ {[%clk 0:00:21.5]} 47... Kf6 {[%clk 0:00:25]} 48. Nxf5 {[%clk
0:00:22.6]} 48... Rc3 {[%clk 0:00:25.5]} 49. Nd6 {[%clk 0:00:22.8]} 49... Rc2
{[%clk 0:00:25.8]} 50. Ne4+ {[%clk 0:00:23.8]} 50... Ke5 {[%clk 0:00:27]} 51.
Rg7 {[%clk 0:00:22.2]} 51... Kf5 {[%clk 0:00:27.1]} 52. Rf7+ {[%clk 0:00:22.8]}
52... Ke5 {[%clk 0:00:28.2]} 53. Re7+ {[%clk 0:00:24.1]} 53... Kf5 {[%clk
0:00:29.3]} 54. Rf7+ {[%clk 0:00:24.1]} 54... Ke5 {[%clk 0:00:30.2]} 55. h4
{[%clk 0:00:25.4]} 55... Rc6 {[%clk 0:00:28.8]} 56. Kg3 {[%clk 0:00:23.9]} 56...
Rb6 {[%clk 0:00:27.9]} 57. Bf3 {[%clk 0:00:25]} 57... Ra6 {[%clk 0:00:28.1]} 58.
Re7+ {[%clk 0:00:26.3]} 58... Kf5 {[%clk 0:00:28]} 59. Ng5 {[%clk 0:00:25.1]}
59... Rb6 {[%clk 0:00:28.1]} 60. Be4+ {[%clk 0:00:25.1]} 60... Kf6 {[%clk
0:00:28.5]} 61. Rf7+ {[%clk 0:00:24.4]} 61... Ke5 {[%clk 0:00:29.7]} 62. Rg7
{[%clk 0:00:24.8]} 62... Rb3+ {[%clk 0:00:27.4]} 63. Bf3 {[%clk 0:00:25.6]}
63... Rb6 {[%clk 0:00:27.9]} 64. Rc7 {[%clk 0:00:19.7]} 64... Kf5 {[%clk
0:00:23.5]} 65. Rc5+ {[%clk 0:00:20.6]} 65... Kf6 {[%clk 0:00:22]} 66. Rc6+
{[%clk 0:00:22.1]} 1-0